bitfinex/quotes_BTCUSD_20250620
["timestamp","ask_amount","ask_price","bid_price","bid_amount"]
[1750442505931,0.60754231,103280.0,103270.0,0.21650421]
[1750442506340,0.27948993,103280.0,103270.0,0.19713798]
[1750442506568,0.09552401,103280.0,103270.0,0.22618709]
[1750442506754,0.0858416,103280.0,103270.0,0.23586978]
[1750442507009,0.0858416,103280.0,103270.0,0.23707978]
[1750442507647,0.08584122,103280.0,103270.0,0.23707978]
[1750442507907,0.09552354,103280.0,103270.0,0.23707978]
[1750442508352,0.09552279,103280.0,103270.0,0.23707978]
[1750442508567,0.10520501,103280.0,103270.0,0.23707978]
[1750442509218,0.35317875,103280.0,103270.0,0.21650421]
[1750442509886,0.34349662,103280.0,103270.0,0.19713798]
[1750442510096,0.3350444,103280.0,103270.0,0.0034709]
[1750442511155,0.3350444,103280.0,103270.0,0.0004709]
[1750442512033,0.63727673,103280.0,103270.0,0.0014709]
[1750442513119,5.64540373,103280.0,103270.0,0.0014709]
[1750442513300,5.64540373,103280.0,103270.0,0.0004709]
[1750442514448,5.69540373,103280.0,103270.0,0.0004709]
[1750442514657,6.03540373,103280.0,103270.0,0.0004709]
[1750442514870,0.2142244,103250.0,103240.0,0.07771895]
[1750442515087,0.4850244,103250.0,103240.0,0.07771895]
[1750442515577,0.20340934,103240.0,103230.0,0.0001]
[1750442515794,0.20455934,103240.0,103230.0,0.0001]
[1750442516445,0.20340934,103240.0,103230.0,0.0001]
[1750442516653,0.23033882,103240.0,103230.0,0.0001]
[1750442516859,0.20340934,103240.0,103230.0,0.00024081]
[1750442517516,0.20455934,103240.0,103230.0,0.00524081]
[1750442518152,0.20455934,103240.0,103230.0,0.00024081]
[1750442518362,5.21268634,103240.0,103230.0,0.00024081]
[1750442518572,5.40323512,103240.0,103230.0,0.00024081]
[1750442519426,5.40323512,103240.0,103230.0,0.00224081]
[1750442519644,5.74323512,103240.0,103230.0,0.00224081]
[1750442520460,5.64796527,103240.0,103230.0,0.00224081]
[1750442521019,5.70896527,103240.0,103230.0,0.00224081]
[1750442522336,5.70896527,103240.0,103230.0,0.00024081]
[1750442522553,5.70996527,103240.0,103230.0,0.00024081]
[1750442522769,5.55155603,103230.0,103220.0,0.0001]
[1750442522977,6.15200496,103230.0,103220.0,0.0001]
[1750442523180,5.81200496,103230.0,103220.0,0.0001]
[1750442523393,5.60544496,103230.0,103220.0,0.0001]
[1750442523597,5.44526603,103230.0,103220.0,0.0001]
[1750442523824,5.71578603,103230.0,103220.0,0.0001]
[1750442525078,6.05578603,103230.0,103220.0,0.0001]
[1750442526145,6.05578603,103230.0,103220.0,0.00316]
[1750442526348,6.05578603,103230.0,103220.0,0.00326]
[1750442526768,5.78526603,103230.0,103220.0,0.20670893]
[1750442526981,0.5193622,103230.0,103220.0,0.3472505]
[1750442527200,0.32562008,103230.0,103220.0,0.3801505]
[1750442527874,0.26162008,103230.0,103220.0,0.3801505]
[1750442528107,0.29656,103230.0,103220.0,0.3801505]
[1750442528538,0.30624635,103230.0,103220.0,0.3801505]
[1750442528745,0.29656,103230.0,103220.0,0.47542943]
[1750442529402,0.30624626,103230.0,103220.0,0.47542943]
[1750442529608,0.29656,103230.0,103220.0,0.47542943]
[1750442530034,0.29656,103230.0,103220.0,0.47842943]
[1750442530911,0.30624626,103230.0,103220.0,0.40071048]
[1750442531146,0.29656,103230.0,103220.0,0.40071048]
[1750442531364,0.064,103230.0,103220.0,0.40071048]
[1750442531590,9.107e-05,103240.0,103230.0,0.2861623]
[1750442531811,9.107e-05,103240.0,103230.0,0.58768123]
[1750442532029,9.107e-05,103240.0,103230.0,0.60222208]
[1750442532251,9.107e-05,103240.0,103230.0,1.29922094]
[1750442532470,9.107e-05,103240.0,103230.0,0.60222208]
[1750442532679,9.107e-05,103240.0,103230.0,1.30122094]
[1750442533304,9.107e-05,103240.0,103230.0,1.29922094]
[1750442533718,9.107e-05,103240.0,103230.0,0.60222208]
[1750442534146,0.00977648,103240.0,103230.0,0.38144123]
[1750442534360,9.107e-05,103240.0,103230.0,0.58756123]
[1750442534787,9.107e-05,103240.0,103230.0,0.59256123]
[1750442535623,9.107e-05,103240.0,103230.0,0.58756123]
[1750442535855,9.107e-05,103240.0,103230.0,0.38144123]
[1750442536059,9.107e-05,103240.0,103230.0,0.59052123]
[1750442536893,9.107e-05,103240.0,103230.0,0.38444123]
[1750442537079,9.107e-05,103240.0,103230.0,0.59048123]
[1750442537649,9.107e-05,103240.0,103230.0,0.38444123]
[1750442537861,9.107e-05,103240.0,103230.0,0.59040123]
[1750442538308,0.20349975,103240.0,103230.0,0.36506806]
[1750442538538,0.26549799,103240.0,103230.0,0.20642922]
[1750442538884,0.0388346,103240.0,103230.0,0.22696296]
[1750442539096,0.02914853,103240.0,103230.0,0.24633603]
[1750442539307,0.22287189,103240.0,103230.0,0.23664959]
[1750442539853,0.22287189,103240.0,103230.0,0.23548959]
[1750442540059,0.21318629,103240.0,103230.0,0.22580296]
[1750442540487,0.21318629,103240.0,103230.0,0.22280296]
[1750442540720,0.20342894,103230.0,103220.0,0.22988089]
[1750442540915,0.28680267,103230.0,103220.0,0.56975038]
[1750442541139,0.28680267,103230.0,103220.0,0.20670884]
[1750442541329,0.27826604,103230.0,103220.0,0.00326]
[1750442541483,0.0096872,103220.0,103210.0,0.22559978]
[1750442541837,0.01937458,103220.0,103210.0,0.34238916]
[1750442542224,0.22280258,103230.0,103220.0,0.25688417]
[1750442542435,0.25714212,103230.0,103220.0,0.25688417]
[1750442542847,0.5641723,103240.0,103230.0,0.20342903]
[1750442543058,0.029098,103240.0,103230.0,0.20342903]
[1750442543235,0.00968541,103240.0,103230.0,0.2867622]
[1750442543416,0.10214287,103240.0,103230.0,0.2867622]
[1750442543618,0.10214287,103240.0,103230.0,0.2541622]
[1750442543860,0.58216902,103250.0,103240.0,0.21309503]
[1750442544062,0.66493919,103250.0,103240.0,0.21425503]
[1750442544457,0.66493919,103250.0,103240.0,0.22394063]
[1750442544644,0.28615934,103250.0,103240.0,0.22394063]
[1750442545431,0.07308457,103250.0,103240.0,0.26732614]
[1750442545638,0.29584419,103250.0,103240.0,0.23446614]
[1750442546116,0.29584419,103250.0,103240.0,0.60738614]
[1750442546117,0.08276923,103250.0,103240.0,0.60738614]
[1750442546341,0.09245417,103250.0,103240.0,0.60738614]
[1750442546547,0.08276923,103250.0,103240.0,0.60738614]
[1750442546751,0.09245408,103250.0,103240.0,0.60738614]
[1750442546961,0.08276923,103250.0,103240.0,0.60738614]
[1750442547190,0.08267983,103250.0,103240.0,0.60738614]
[1750442547396,0.09236468,103250.0,103240.0,0.60738614]
[1750442548183,0.10204972,103250.0,103240.0,0.60738614]
[1750442548522,0.09236459,103250.0,103240.0,0.60738614]
[1750442548788,0.0634,103250.0,103240.0,0.26738614]
[1750442549019,0.69692784,103270.0,103260.0,0.20337003]
[1750442549020,0.64143072,103270.0,103260.0,0.20337003]
[1750442549256,0.26676994,103260.0,103250.0,0.2447742]
[1750442549493,0.27645423,103260.0,103250.0,0.2130742]
[1750442549951,0.08276839,103260.0,103250.0,0.2130742]
[1750442550155,0.09245202,103260.0,103250.0,0.22275877]
[1750442550367,0.09245202,103260.0,103250.0,0.22397877]
[1750442550580,0.29582215,103260.0,103250.0,0.22397877]
[1750442550799,0.29582215,103260.0,103250.0,0.21307477]
[1750442551011,0.29582215,103260.0,103250.0,0.20338983]
[1750442551215,0.22275934,103250.0,103240.0,0.4184945]
[1750442551424,0.23244466,103250.0,103240.0,0.21309516]
[1750442551636,0.23244466,103250.0,103230.0,0.4504351]
[1750442551637,0.20338983,103250.0,103230.0,0.4504351]
[1750442551849,0.20462983,103250.0,103230.0,0.51497403]
[1750442552065,0.20462983,103250.0,103240.0,0.19372336]
[1750442552278,0.20462983,103250.0,103240.0,0.21309541]
[1750442552702,0.21307477,103250.0,103240.0,0.23246689]
[1750442552912,0.21307477,103250.0,103240.0,0.21309541]
[1750442553123,0.21307477,103250.0,103240.0,0.2227811]
[1750442553397,0.0193696,103250.0,103240.0,0.2324667]
[1750442553615,0.21305427,103260.0,103250.0,0.22275915]
[1750442553839,0.09245164,103260.0,103250.0,0.22397915]
[1750442554049,0.02905098,103260.0,103250.0,0.22397915]
[1750442554261,0.09245098,103260.0,103250.0,0.22397915]
[1750442554475,0.00968701,103230.0,103220.0,0.03422]
[1750442554693,0.01937486,103220.0,103210.0,0.19527424]
[1750442554901,0.01937486,103220.0,103210.0,0.27793009]
[1750442555111,0.02906271,103220.0,103210.0,0.27924116]
[1750442555728,0.00968729,103220.0,103210.0,0.31044116]
[1750442555930,0.01937477,103220.0,103210.0,0.51564116]
[1750442556330,0.03875019,103220.0,103210.0,0.31044116]
[1750442556760,0.04843814,103220.0,103210.0,0.31044116]
[1750442556967,0.03875019,103220.0,103210.0,0.31044116]
[1750442557377,0.03875019,103220.0,103210.0,0.34074116]
[1750442557596,0.27651586,103230.0,103220.0,0.21313669]
[1750442557807,0.27651586,103230.0,103220.0,0.22282435]
[1750442558152,0.27651586,103230.0,103220.0,0.21313669]
[1750442558563,0.27651586,103230.0,103210.0,0.33105228]
[1750442558564,0.00968748,103220.0,103210.0,0.33105228]
[1750442558757,0.01937505,103220.0,103210.0,0.33105228]
[1750442559110,0.20342838,103230.0,103220.0,0.21313631]
[1750442559323,0.27651548,103230.0,103220.0,0.20466874]
[1750442559515,0.27651548,103230.0,103220.0,0.2143564]
[1750442559718,0.2862023,103230.0,103220.0,0.22404397]
[1750442560148,0.27651604,103230.0,103220.0,0.22404397]
[1750442560339,0.27651604,103230.0,103220.0,0.22604397]
[1750442560890,0.27651604,103230.0,103220.0,0.2163564]
[1750442561718,0.27651604,103230.0,103220.0,0.20666874]
[1750442561921,0.27651604,103230.0,103220.0,0.2163565]
[1750442562300,0.34708888,103230.0,103220.0,0.2163565]
[1750442563048,0.36650006,103230.0,103220.0,0.19698089]
[1750442563254,0.35681296,103230.0,103220.0,0.20544893]
[1750442563381,0.35681296,103230.0,103220.0,0.21513678]
[1750442564412,0.28624012,103230.0,103220.0,0.21513678]
[1750442564863,0.28624012,103230.0,103220.0,0.22482454]
[1750442565073,0.28624012,103230.0,103220.0,0.20544893]
[1750442565265,0.28624012,103230.0,103220.0,0.20666893]
[1750442565507,0.28624012,103230.0,103220.0,0.21635669]
[1750442565733,0.28624012,103230.0,103220.0,0.22604435]
[1750442565962,0.0634,103230.0,103220.0,0.39321066]
[1750442566798,0.0634,103230.0,103220.0,0.59797066]
[1750442566799,0.07308626,103230.0,103220.0,0.59797066]
[1750442567002,0.07308626,103230.0,103220.0,0.59597066]
[1750442567224,0.28620155,103230.0,103220.0,0.38030328]
[1750442567442,0.29588856,103230.0,103220.0,0.22582435]
[1750442567647,0.29588856,103230.0,103220.0,0.23551192]
[1750442568064,0.29588856,103230.0,103220.0,0.24519874]
[1750442568267,0.10214644,103230.0,103220.0,0.24641874]
[1750442568925,0.09245943,103230.0,103220.0,0.24641874]
[1750442569363,0.0827727,103230.0,103220.0,0.24641874]
[1750442569572,0.10214615,103230.0,103220.0,0.24641874]
[1750442569788,0.10214606,103230.0,103220.0,0.24641874]
[1750442570115,0.35959987,103230.0,103220.0,0.22582388]
[1750442570316,0.30557584,103230.0,103220.0,0.23551136]
[1750442570517,0.11183372,103230.0,103220.0,0.24519874]
[1750442570751,0.10214671,103230.0,103220.0,0.24519874]
[1750442570944,0.08277307,103230.0,103220.0,0.24519874]
[1750442571157,0.09245998,103230.0,103220.0,0.24519874]
[1750442572557,0.08277307,103230.0,103220.0,0.24519874]
[1750442573038,0.07119395,103230.0,103220.0,0.24519874]
[1750442573327,0.0905673,103230.0,103220.0,0.24519874]
[1750442573525,0.0880473,103230.0,103220.0,0.24519874]
[1750442574427,0.09773412,103230.0,103220.0,0.24519874]
[1750442574843,0.08929712,103230.0,103220.0,0.22582435]
[1750442575042,0.08929721,103230.0,103220.0,0.23551173]
[1750442575305,0.08804721,103230.0,103220.0,0.23551173]
[1750442575503,0.09773422,103230.0,103220.0,0.23551173]
[1750442575867,0.30116344,103230.0,103220.0,0.23551173]
[1750442576667,0.08804721,103230.0,103220.0,0.23551173]
[1750442576984,0.29147634,103230.0,103220.0,0.22582435]
[1750442577192,0.29272634,103230.0,103220.0,0.22582435]
[1750442577385,0.28303999,103230.0,103220.0,0.22582435]
[1750442577840,0.28178999,103230.0,103220.0,0.23551173]
[1750442578260,0.28178999,103230.0,103220.0,0.22582435]
[1750442578476,0.36723163,103230.0,103220.0,0.21613669]
[1750442578701,0.358795,103230.0,103220.0,0.21613669]
[1750442578907,0.34910809,103230.0,103220.0,0.01268804]
[1750442579119,0.25397944,103230.0,103220.0,0.01268804]
[1750442579530,0.25397944,103230.0,103220.0,0.20644893]
[1750442579955,0.25397944,103230.0,103220.0,0.003]
[1750442580585,0.79676944,103230.0,103220.0,0.003]
[1750442580804,5.2843135,103220.0,103210.0,9.107e-05]
[1750442581024,5.61219243,103220.0,103210.0,9.107e-05]
[1750442581237,5.63522167,103220.0,103210.0,9.107e-05]
[1750442581456,5.90194167,103220.0,103210.0,9.107e-05]
[1750442581691,5.90190167,103220.0,103210.0,9.107e-05]
[1750442582334,5.91161152,103220.0,103210.0,9.107e-05]
[1750442582557,6.25161152,103220.0,103210.0,9.107e-05]
[1750442584089,6.31615237,103220.0,103210.0,9.107e-05]
[1750442584304,6.39490837,103220.0,103210.0,9.107e-05]
[1750442584518,6.49017822,103220.0,103210.0,9.107e-05]
[1750442584963,0.54346846,103210.0,103200.0,0.0002]
[1750442585172,5.73475054,103210.0,103200.0,0.0002]
[1750442585599,0.61559829,103190.0,103180.0,0.0001]
[1750442585823,6.00980037,103190.0,103180.0,0.0001]
[1750442586044,5.98677422,103190.0,103180.0,0.0001]
[1750442588618,5.72025422,103190.0,103180.0,0.0001]
[1750442588832,5.98669422,103190.0,103180.0,0.0001]
[1750442589041,6.07920552,103190.0,103180.0,0.0001]
[1750442589758,6.12908552,103190.0,103180.0,0.0001]
[1750442590004,6.10198494,103190.0,103180.0,0.0001]
[1750442590964,5.83566494,103190.0,103180.0,0.0001]
[1750442591199,5.56257529,103190.0,103180.0,0.0001]
[1750442591425,0.71215829,103190.0,103180.0,0.0001]
[1750442591671,0.74127029,103190.0,103180.0,0.00134]
[1750442592586,1.08127029,103190.0,103180.0,0.00134]
[1750442592812,0.87775029,103190.0,103180.0,0.22647601]
[1750442593033,1.0715399,103190.0,103180.0,0.22647601]
[1750442593269,1.0715399,103190.0,103180.0,0.23616781]
[1750442594222,1.0714599,103190.0,103180.0,0.24585951]
[1750442594442,1.0714999,103190.0,103180.0,0.28635112]
[1750442594679,0.50847047,103190.0,103180.0,0.29604254]
[1750442594909,0.47935847,103190.0,103180.0,0.28635112]
[1750442595147,0.56025736,103190.0,103180.0,0.00134]
[1750442595875,0.46966799,103190.0,103180.0,0.00134]
[1750442596119,0.46966799,103190.0,103180.0,0.23486771]
[1750442596581,0.46962799,103190.0,103180.0,0.27825913]
[1750442596820,0.47919847,103190.0,103180.0,0.28795074]
[1750442597237,0.47919847,103190.0,103180.0,0.27825932]
[1750442597450,0.47919847,103190.0,103180.0,0.26856771]
[1750442597695,0.47919847,103190.0,103180.0,0.28795074]
[1750442598127,0.47919847,103190.0,103180.0,0.35545074]
[1750442599195,0.27595847,103190.0,103180.0,0.34575932]
[1750442599602,0.27595847,103190.0,103180.0,0.32637601]
[1750442599811,0.340789,103190.0,103180.0,0.06984]
[1750442600018,0.26626799,103190.0,103180.0,0.27336781]
[1750442600167,0.46930799,103190.0,103180.0,0.29275102]
[1750442600366,0.46930799,103190.0,103180.0,0.27336781]
[1750442600592,0.45961723,103190.0,103180.0,0.0686]
[1750442600806,0.46086723,103190.0,103180.0,0.0686]
[1750442601021,5.93320262,103190.0,103180.0,0.0686]
[1750442601232,5.96510262,103190.0,103180.0,0.0686]
[1750442602165,6.06038155,103190.0,103180.0,0.0676]
[1750442605501,6.11038155,103190.0,103180.0,0.0676]
[1750442606095,5.84458155,103190.0,103180.0,0.0676]
[1750442606290,6.10934155,103190.0,103180.0,0.0676]
[1750442606895,6.1738824,103190.0,103180.0,0.05283378]
[1750442607112,5.61405462,103180.0,103170.0,0.0002]
[1750442607278,5.8058134,103180.0,103170.0,0.0002]
[1750442608236,6.0084934,103180.0,103170.0,0.0002]
[1750442608405,6.0084934,103180.0,103170.0,0.00034126]
[1750442608904,6.0114934,103180.0,103170.0,0.00034126]
[1750442612177,6.16193305,103180.0,103170.0,0.00034126]
[1750442614151,6.20024562,103180.0,103170.0,0.00034126]
[1750442616258,6.1588722,103180.0,103170.0,0.00034126]
[1750442616465,6.06648777,103180.0,103170.0,0.00034126]
[1750442616723,6.06769777,103180.0,103170.0,0.00034126]
[1750442617113,5.63117792,103180.0,103170.0,0.00034126]
[1750442617341,5.97113792,103180.0,103170.0,0.00147126]
[1750442617518,5.97113792,103180.0,103170.0,0.00034126]
[1750442617735,5.97234792,103180.0,103170.0,0.00034126]
[1750442618340,5.97113792,103180.0,103170.0,0.00034126]
[1750442618559,6.03288785,103180.0,103170.0,0.00034126]
[1750442619411,5.87573899,103180.0,103170.0,0.03234126]
[1750442619632,5.87573899,103180.0,103170.0,0.00034126]
[1750442620068,5.61181899,103180.0,103170.0,0.03347126]
[1750442620292,5.87569899,103180.0,103170.0,0.06667126]
[1750442621158,5.87561899,103180.0,103170.0,0.06667126]
[1750442621606,5.85263145,103180.0,103170.0,0.26052606]
[1750442622075,0.04686797,103180.0,103170.0,0.28960314]
[1750442622077,0.0893572,103180.0,103170.0,0.28960314]
[1750442622325,0.07461104,103180.0,103170.0,0.28960314]
[1750442622554,0.06492,103180.0,103170.0,0.28960314]
[1750442623035,0.03876136,103190.0,103180.0,0.22291027]
[1750442623273,0.02907069,103190.0,103180.0,0.28754027]
[1750442623481,0.10068136,103190.0,103180.0,0.28754027]
[1750442623713,0.28124855,103200.0,103190.0,0.07432086]
[1750442623928,0.54665579,103200.0,103190.0,0.29720915]
[1750442624163,0.36254717,103200.0,103190.0,0.29720915]
[1750442624410,0.70254717,103200.0,103190.0,0.29720915]
[1750442624630,0.69285735,103200.0,103190.0,0.29720915]
[1750442624874,0.70254699,103200.0,103190.0,0.29720915]
[1750442625107,0.88665626,103200.0,103190.0,0.27782866]
[1750442625350,0.97223666,103200.0,103190.0,0.26813809]
[1750442625999,0.2035079,103190.0,103180.0,0.26885771]
[1750442626224,0.00969057,103190.0,103180.0,0.29680131]
[1750442626433,0.08130124,103190.0,103180.0,0.29793131]
[1750442626641,0.10068248,103190.0,103180.0,0.28824036]
[1750442626849,0.29449971,103190.0,103180.0,0.28824036]
[1750442627283,0.30419057,103190.0,103180.0,0.28924036]
[1750442627495,0.29450009,103190.0,103180.0,0.28924036]
[1750442627708,0.28480952,103190.0,103180.0,0.27954913]
[1750442628906,0.28480952,103190.0,103180.0,0.26985771]
[1750442629125,0.70069794,103190.0,103180.0,0.06633]
[1750442629632,0.70069794,103190.0,103180.0,0.26985781]
[1750442630101,0.6054279,103190.0,103180.0,0.26016601]
[1750442630324,1.0163668,103200.0,103190.0,0.27992847]
[1750442630564,1.0782868,103200.0,103190.0,0.27992847]
[1750442630785,0.89764223,103200.0,103190.0,0.28961876]
[1750442630987,0.89764223,103200.0,103190.0,0.27992847]
[1750442631197,0.69632223,103200.0,103190.0,0.27023799]
[1750442631628,0.68663269,103200.0,103190.0,0.0325]
[1750442632512,0.08122443,103200.0,103190.0,0.3838976]
[1750442632731,0.029109,103200.0,103190.0,1.29667731]
[1750442633175,0.02863766,103210.0,103200.0,0.28496706]
[1750442633406,0.02863766,103210.0,103200.0,0.38137599]
[1750442635963,0.02863766,103210.0,103200.0,0.38337599]
[1750442636382,0.02863766,103210.0,103200.0,0.39791684]
[1750442636584,0.02863766,103210.0,103200.0,1.0949157]
[1750442636790,0.02863766,103210.0,103200.0,0.39791684]
[1750442637002,0.02863766,103210.0,103200.0,0.42753936]
[1750442638313,0.02863766,103210.0,103200.0,1.12453822]
[1750442638953,0.02863766,103210.0,103200.0,0.42753936]
[1750442639841,0.02863766,103210.0,103200.0,0.49503936]
[1750442640609,0.05770271,103210.0,103200.0,0.4793686]
[1750442640843,0.05770262,103210.0,103200.0,0.49027786]
[1750442641097,0.2611723,103210.0,103200.0,0.35624096]
[1750442641315,0.12573372,103210.0,103200.0,0.28267771]
[1750442641520,0.05470356,103210.0,103200.0,0.32658697]
[1750442641776,0.25817221,103210.0,103200.0,0.33627651]
[1750442642212,0.05470356,103210.0,103200.0,0.33427651]
[1750442642426,0.00968851,103210.0,103200.0,0.34396558]
[1750442642636,0.19376152,103220.0,103210.0,0.21315735]
[1750442642850,0.20344947,103220.0,103210.0,0.21315735]
[1750442643073,0.21313713,103220.0,103210.0,0.21315735]
[1750442643280,0.21313713,103220.0,103210.0,0.22284586]
[1750442643618,0.10686895,103230.0,103210.0,0.23646818]
[1750442643833,0.59195239,103230.0,103220.0,0.26673183]
[1750442644034,0.63349949,103230.0,103220.0,0.25704435]
[1750442644390,0.63349949,103230.0,103220.0,0.26673192]
[1750442644601,0.43975737,103230.0,103220.0,0.2764194]
[1750442644718,0.62381295,103230.0,103220.0,0.24735669]
[1750442645168,0.62581295,103230.0,103220.0,0.24735669]
[1750442645378,0.62581295,103230.0,103220.0,0.26673164]
[1750442645379,0.42238373,103230.0,103220.0,0.26673164]
[1750442645582,0.62581295,103230.0,103220.0,0.25704426]
[1750442645783,0.62381295,103230.0,103220.0,0.25704426]
[1750442645983,0.62381295,103230.0,103220.0,0.25804426]
[1750442646191,0.43007074,103230.0,103220.0,0.26773164]
[1750442646393,0.63349996,103230.0,103220.0,0.25804426]
[1750442646619,0.62381286,103230.0,103220.0,0.26773174]
[1750442646841,0.43007074,103230.0,103220.0,0.27741912]
[1750442647238,0.63349996,103230.0,103220.0,0.27741912]
[1750442647459,5e-05,103230.0,103220.0,0.40309805]
[1750442648030,0.01942298,103230.0,103220.0,0.40309805]
[1750442648233,0.04385154,103230.0,103220.0,0.39341057]
[1750442648429,0.04385154,103230.0,103220.0,0.59369057]
[1750442648671,0.02447772,103230.0,103220.0,0.59369057]
[1750442648859,0.03416445,103230.0,103220.0,0.59369057]
[1750442649260,0.09088094,103230.0,103220.0,0.5193431]
[1750442649426,0.04385136,103230.0,103220.0,0.56035048]
[1750442649656,0.03416445,103230.0,103220.0,0.56035048]
[1750442649847,0.02447772,103230.0,103220.0,0.59075048]
[1750442650093,0.03416445,103230.0,103220.0,0.59075048]
[1750442650656,0.05353837,103230.0,103220.0,0.56035048]
[1750442650858,0.24728049,103230.0,103220.0,0.56035048]
[1750442650990,0.23759414,103230.0,103220.0,0.5506631]
[1750442651394,0.03416501,103230.0,103220.0,0.56035048]
[1750442651599,0.22790713,103230.0,103220.0,0.55066328]
[1750442651832,0.22790713,103230.0,103220.0,0.57003833]
[1750442652184,0.02447763,103230.0,103220.0,0.57003767]
[1750442652407,0.00510483,103230.0,103220.0,0.60083767]
[1750442652816,0.02447772,103230.0,103220.0,0.60083767]
[1750442653272,0.03416445,103230.0,103220.0,0.60083767]
[1750442653476,0.02447772,103230.0,103220.0,0.60083767]
[1750442653675,0.01479118,103230.0,103220.0,0.60083767]
[1750442654404,0.02447772,103230.0,103220.0,0.60083767]
[1750442654838,0.03416472,103230.0,103220.0,0.60083767]
[1750442655059,0.01479118,103230.0,103220.0,0.60083767]
[1750442655278,0.00510483,103230.0,103220.0,0.60083767]
[1750442655929,5e-05,103230.0,103220.0,1.31237738]
[1750442657215,5e-05,103230.0,103220.0,1.31137738]
[1750442657422,5e-05,103230.0,103220.0,1.31237738]
[1750442658057,5e-05,103230.0,103220.0,1.31137738]
[1750442658259,5e-05,103230.0,103220.0,1.31337738]
[1750442660362,5e-05,103230.0,103220.0,0.61437852]
[1750442660784,5e-05,103230.0,103220.0,0.61737852]
[1750442660994,5e-05,103230.0,103220.0,1.31437738]
[1750442662341,5e-05,103230.0,103220.0,1.65437738]
[1750442663944,5e-05,103230.0,103220.0,1.72327662]
[1750442664202,5e-05,103230.0,103220.0,1.77327662]
[1750442664651,5e-05,103230.0,103220.0,1.07627776]
[1750442664878,5e-05,103230.0,103220.0,1.77327662]
[1750442665523,5e-05,103230.0,103220.0,1.07627776]
[1750442665732,5e-05,103230.0,103220.0,1.77327662]
[1750442667029,5e-05,103230.0,103220.0,1.45397338]
[1750442667257,5e-05,103230.0,103220.0,0.94179367]
[1750442667471,5e-05,103230.0,103220.0,1.65333338]
[1750442668343,5e-05,103230.0,103220.0,0.95633452]
[1750442668555,5e-05,103230.0,103220.0,1.65333338]
[1750442669202,5e-05,103230.0,103220.0,0.75697452]
[1750442669421,5e-05,103230.0,103220.0,0.54077367]
[1750442669634,5e-05,103230.0,103220.0,0.57157367]
[1750442669855,5e-05,103230.0,103220.0,0.54077367]
[1750442670070,5e-05,103230.0,103220.0,0.55231452]
[1750442670531,5e-05,103230.0,103220.0,0.58511452]
[1750442672903,5e-05,103230.0,103220.0,0.58389452]
[1750442673129,5e-05,103230.0,103220.0,1.65422338]
[1750442674050,5e-05,103230.0,103220.0,1.65222338]
[1750442674397,5e-05,103230.0,103220.0,1.65522338]
[1750442676063,5e-05,103230.0,103220.0,1.70522338]
[1750442676498,5e-05,103230.0,103220.0,1.70222338]
[1750442676944,5e-05,103230.0,103220.0,1.70622338]
[1750442677599,5e-05,103230.0,103220.0,1.50698338]
[1750442677820,0.03036065,103230.0,103220.0,0.30272786]
[1750442678054,6.00051055,103230.0,103220.0,0.004]
[1750442678282,6.28865155,103230.0,103220.0,0.004]
[1750442678719,0.60564874,103220.0,103210.0,0.00014126]
[1750442678931,5.61502574,103220.0,103210.0,0.00014126]
[1750442679149,5.71029559,103220.0,103210.0,0.00014126]
[1750442679382,5.80557452,103220.0,103210.0,0.00014126]
[1750442680341,5.71030467,103220.0,103210.0,0.00014126]
[1750442680805,5.73910916,103220.0,103210.0,0.00014126]
[1750442683995,5.80365001,103220.0,103210.0,0.00014126]
[1750442684208,5.80365001,103220.0,103200.0,0.0675]
[1750442684209,5.61434546,103210.0,103200.0,0.0675]
[1750442684423,5.90826439,103210.0,103200.0,0.0675]
[1750442684628,6.00353424,103210.0,103200.0,0.0675]
[1750442686572,6.06807509,103210.0,103200.0,0.0675]
[1750442687238,5.96834439,103210.0,103200.0,0.0675]
[1750442687453,5.70962439,103210.0,103200.0,0.0675]
[1750442687664,5.96834439,103210.0,103200.0,0.0675]
[1750442689872,5.99745339,103210.0,103200.0,0.0675]
[1750442692832,6.06199424,103210.0,103200.0,0.0675]
[1750442693080,6.15726409,103210.0,103200.0,0.0675]
[1750442693530,5.83400324,103210.0,103200.0,0.0675]
[1750442693752,5.99725339,103210.0,103200.0,0.0675]
[1750442694630,5.79829339,103210.0,103200.0,0.0675]
[1750442694857,5.93503339,103210.0,103200.0,0.0675]
[1750442695282,5.67723339,103210.0,103200.0,0.0675]
[1750442695509,5.93503339,103210.0,103200.0,0.0675]
[1750442695744,5.67723339,103210.0,103200.0,0.0675]
[1750442695972,5.93499339,103210.0,103200.0,0.0675]
[1750442696993,6.01787395,103210.0,103200.0,0.0675]
[1750442697235,6.01787395,103210.0,103200.0,0.0676]
[1750442697498,5.76011395,103210.0,103200.0,0.0676]
[1750442697719,6.08147395,103210.0,103200.0,0.0676]
[1750442699878,6.08147395,103210.0,103200.0,0.0276]
[1750442701215,5.99859339,103210.0,103200.0,0.0276]
[1750442702319,5.99835339,103210.0,103200.0,0.0276]
[1750442702550,5.99827339,103210.0,103200.0,0.0276]
[1750442703270,5.99827339,103210.0,103170.0,0.22436174]
[1750442703271,0.21321895,103180.0,103170.0,0.0002]
[1750442703496,0.70333895,103180.0,103170.0,0.0002]
[1750442703739,0.79417628,103180.0,103170.0,0.0002]
[1750442703974,6.17697988,103180.0,103170.0,0.0002]
[1750442704213,6.18656824,103180.0,103170.0,0.0002]
[1750442704457,6.24996824,103180.0,103170.0,0.0002]
[1750442704698,6.18653524,103180.0,103170.0,0.0002]
[1750442705422,6.18653524,103180.0,103170.0,0.0012]
[1750442705852,6.18653524,103180.0,103170.0,0.0002]
[1750442706073,6.28176509,103180.0,103170.0,0.0003]
[1750442706331,6.28276509,103180.0,103170.0,0.0003]
[1750442707181,6.34676509,103180.0,103170.0,0.0003]
[1750442707408,0.21326037,103160.0,103150.0,0.19459801]
[1750442707621,0.40124726,103160.0,103150.0,0.19388801]
[1750442708050,0.40124726,103160.0,103150.0,0.20358244]
[1750442708265,0.01938819,103150.0,103140.0,0.27719958]
[1750442708475,0.08864252,103150.0,103140.0,0.27719958]
[1750442708688,0.08864215,103150.0,103140.0,0.27719958]
[1750442708931,0.05956,103150.0,103140.0,0.27719958]
[1750442709139,0.06925386,103150.0,103140.0,0.27719958]
[1750442709353,0.078948,103150.0,103140.0,0.27719958]
[1750442709562,0.078948,103150.0,103140.0,0.28142958]
[1750442710441,0.07894791,103150.0,103140.0,0.28142958]
[1750442710665,0.00969339,103160.0,103140.0,0.28142958]
[1750442710905,0.03877357,103160.0,103150.0,0.25387528]
[1750442711152,0.48972716,103160.0,103150.0,0.25510528]
[1750442711388,0.48972716,103160.0,103150.0,0.24541123]
[1750442711622,0.48972716,103160.0,103150.0,0.25510547]
[1750442712345,0.49942083,103160.0,103150.0,0.26479961]
[1750442712636,0.58499757,103160.0,103150.0,0.26479961]
[1750442712855,0.57530418,103160.0,103150.0,0.25610547]
[1750442713065,0.57530418,103160.0,103150.0,0.25487547]
[1750442713486,0.57530418,103160.0,103150.0,0.26456961]
[1750442714361,0.04850507,103160.0,103150.0,0.2742631]